[Event "Portugal Championship 2024"]
[Site "Fontelo"]
[Date "2024.09.01"]
[Round "1.1"]
[White "Barria Santos, Jose Guilherme"]
[Black "Martins, Bruno Andre Leite"]
[Result "1/2-1/2"]
[ECO "D32"]
[WhiteElo "2411"]
[BlackElo "2335"]
[Annotator "TA"]
[PlyCount "72"]
[EventDate "2024.09.02"]
[EventType "tourn"]
[EventCountry "POR"]
[SourceTitle "playchess.com"]
[Source "ChessBase"]
[SourceQuality "1"]
[TimeControl "5400+30"]

{[%evp 11,72,13,18,0,0,0,4,11,12,7,6,0,8,0,1,0,6,9,0,0,4,-26,-29,-29,-12,-13,0,-45,-28,-37,-10,-21,-17,-163,-162,-152,-144,-165,-92,-240,-212,-240,0,-224,0,-286,-270,-314,-291,-322,-299,-310,-223,-216,-145,-331,-327,-329,0,-256,0,-261,0]} 1. d4 d5 2. c4 e6 3. Nc3 c5 4. e3 Nf6 5. Nf3 a6 6. cxd5 exd5 7. Bd3 c4 8. Bc2 Bb4 9. O-O {The position is equal.} O-O 10. Ne5 {Against Bg4} Nc6 11. f4 Ne8 {[%cal Bf6e8,Be8d6,Bd6e4][%mdl 32]} 12. Bd2 Bxc3 (12... Ne7 $5) 13. Bxc3 Nd6 14. b3 cxb3 15. Bxb3 {This pair of bishops is nice.} Ne4 16. Nxc6 bxc6 17. Be1 a5 18. Rc1 Qb6 19. Qc2 Ba6 {[#] Strongly threatening ...a4.} 20. Rf3 Bb5 {Hoping for ...a4.} 21. a4 Be2 $36 {[%mdl 2048] Black has some pressure.} 22. Ba2 Bxf3 $19 23. gxf3 Nf6 24. Bh4 {[%cal Oh4f6]} Rfb8 (24... Rfe8 $19 25. Bxf6 gxf6) 25. Rb1 (25. Bxf6 $17 gxf6 26. Qxc6 (26. Bb1 $2 Qb2 $19)) 25... Qc7 26. Rc1 Qb6 27. Rb1 $1 Qc7 28. Rc1 $1 Qe7 29. Qd3 Rb2 30. Bb1 {[%cal Oh4f6]} Rab8 {...R8b3 is the strong threat.} 31. Bc2 Qd6 32. Be1 Qd8 33. Qa6 $2 {[#]} (33. Ra1 $17 {was worth a try.}) 33... Qe7 34. Qd3 Qd8 35. Qa6 $1 Qe7 36. Qd3 Qd8 $2 {Weighted Error Value: White=0.23 (precise) /Black=0.58.  Loses game:     	White=1     	---        Missed win:     	---       	Black=1      Mistake:       	White=2     	Black=1      Inaccurate:     	White=2     	Black=2      OK:         	White=7     	Black=9      Best:        	White=1     	Black=1      Strong:       	White=3     	---} (36... Ra2 $19 37. Bxa5 g6) 1/2-1/2

[Event "Portugal Championship 2024"]
[Site "Fontelo"]
[Date "2024.09.01"]
[Round "1.3"]
[White "Fernandes, Antonio"]
[Black "Veiga, Jose Francisco R P N"]
[Result "0-1"]
[ECO "C79"]
[WhiteElo "2330"]
[BlackElo "2404"]
[Annotator "TA"]
[PlyCount "89"]
[EventDate "2024.09.02"]
[EventType "tourn"]
[EventCountry "POR"]
[SourceTitle "playchess.com"]
[Source "ChessBase"]
[SourceQuality "1"]
[TimeControl "5400+30"]

{[%evp 15,89,39,38,8,25,18,18,0,6,0,-2,0,0,-6,-18,-26,-31,-25,-41,-36,-40,-45,-21,-61,-58,-65,-55,-63,-61,-63,-63,-61,-56,-77,-55,-66,-69,-73,-48,-50,-38,-41,-41,-46,-59,-50,-42,-60,-67,-128,-128,-129,-128,-151,-144,-189,-209,-335,-337,-338,-338,-337,-274,-5189,-5243,-1764,-1010,-987,-967,-993,-946,-822,-666,-6095,-6095,-1246]} 1. e4 {[%emt 0:00:09]} e5 {[%emt 0:00:29]} 2. Nf3 {[%emt 0:00:14]} Nc6 {[%emt 0:00:12]} 3. Bb5 {[%emt 0:00:29]} a6 {[%emt 0:00:11]} 4. Ba4 {[%emt 0:00:05]} Nf6 {[%emt 0:00:46]} 5. O-O {[%emt 0:00:14]} d6 {[%emt 0:00:25]} 6. Re1 {[%emt 0:06:37]} Bd7 {[%emt 0:00:41]} 7. c3 {[%emt 0:09:20]} g6 {[%emt 0:00:52]} 8. d4 {[%emt 0:02:15]} Bg7 {[%emt 0:00:13]} 9. dxe5 {[%emt 0:10:58]} Nxe5 {[%emt 0:02:11]} 10. Nxe5 {[%emt 0:06:45]} dxe5 {[%emt 0:00:15]} 11. Bxd7+ {[%emt 0:00:19] The position is equal.} Qxd7 {[%emt 0:00:12]} 12. Qxd7+ {[%emt 0:00:26]} Nxd7 {[%emt 0:00:07]} 13. Be3 {[%emt 0:00:22] Prevents Nc5} O-O-O {[%emt 0:00:42]} 14. Nd2 {[%emt 0:16:48] [#]} Nc5 $1 {[%emt 0:02:36]} 15. Bxc5 {[%emt 0:28:28]} (15. Re2 Ne6) 15... Rxd2 {[%emt 0:00:22]} 16. Rab1 {[%emt 0:00:19]} Bh6 {[%emt 0:02:23]} 17. Kf1 {[%emt 0:01:58]} Rhd8 {[%emt 0:01:27]} 18. Be7 {[%emt 0:01:23]} Re8 $36 {[%emt 0:11:06][%mdl 2048] Black has good play.} 19. Ba3 {[%emt 0:00:42]} b6 {[%emt 0:05:51]} 20. Rbd1 {[%emt 0:02:00]} Red8 {[%emt 0:00:22] Black has more active pieces.} 21. Rxd2 {[%emt 0:00:09]} Rxd2 $15 {[%emt 0:00:09][%mdl 4096] Endgame. KRB-KRB} (21... Bxd2 $6 22. Rd1 $11) 22. Re2 {[%emt 0:00:07]} Rd1+ {[%emt 0:04:38]} 23. Re1 {[%emt 0:00:02]} Rd3 {[%emt 0:00:06]} 24. Re2 {[%emt 0:05:08]} Kd7 {[%emt 0:08:44]} 25. Ke1 {[%emt 0:00:15]} Ke6 {[%emt 0:02:27]} 26. Rc2 {[%emt 0:05:20]} c5 {[%emt 0:06:27]} 27. Ke2 {[%emt 0:02:27]} c4 {[%emt 0:00:07]} 28. b3 {[%emt 0:00:19]} b5 {[%emt 0:00:05]} 29. Bc5 {[%emt 0:00:47]} f5 {[%emt 0:00:33]} 30. bxc4 {[%emt 0:00:31]} bxc4 {[%emt 0:00:13]} 31. exf5+ {[%emt 0:00:14]} gxf5 {[%emt 0:00:41]} 32. f3 {[%emt 0:00:20]} (32. Rb2 $15 Bg5 (32... Rxc3 33. Rb6+ Kd5 34. Bb4 $11) 33. Rb6+ Kd5 34. Ba3) 32... Kd5 $17 {[%emt 0:00:48]} 33. Bf2 {[%emt 0:00:20]} e4 {[%emt 0:02:36]} 34. Bd4 {[%emt 0:01:04] Repels Bg7} Bf4 {[%emt 0:01:03]} 35. Rb2 {[%emt 0:00:33]} exf3+ {[%emt 0:04:00]} ({Don't take} 35... Bxh2 36. fxe4+ fxe4 (36... Kxe4 37. Rb6 $11) 37. Rb7 $17) 36. gxf3 {[%emt 0:00:01]} Rxd4 {[%emt 0:01:16]} ({Not} 36... Bxh2 37. Rb6 $17) 37. cxd4 $19 {[%emt 0:00:09] [#] Threatens to win with Rb7. KR-KB} c3 $1 {[%emt 0:00:03]} 38. Rc2 {[%emt 0:00:47]} Kxd4 {[%emt 0:00:05][%cal Of4d2]} 39. h3 $2 {[%emt 0:00:33]} (39. Kd1) 39... Bd2 {[%emt 0:01:22] Black is clearly winning.} 40. a4 {[%emt 0:00:24]} a5 {[%emt 0:00:15] Hoping for ...Kc4.} 41. Ra2 {[%emt 0:00:41]} Bc1 {[%emt 0:03:46]} 42. Rc2 {[%emt 0:00:55]} Bf4 {[%emt 0:01:29] ...Kc4 would now be deadly.} 43. Ra2 {[%emt 0:00:15]} Kc4 {[%emt 0:00:17] ( -> ...Kb3)} 44. Rc2 {[%emt 0:00:47]} Bd2 {[%emt 0:01:38]} 45. Ra2 {Weighted Error Value: White=0.50/Black=0.25 (precise) .  Mistake:       	White=2     	---        Inaccurate:     	White=3     	---        OK:         	White=14    	Black=18     Best:        	---       	Black=2      Strong:       	---       	Black=1} 0-1

[Event "Portugal Championship 2024"]
[Site "Fontelo"]
[Date "2024.09.01"]
[Round "1.4"]
[White "Sousa, Andre Ventura"]
[Black "Fidalgo, Andre Neves"]
[Result "1-0"]
[ECO "C77"]
[WhiteElo "2403"]
[BlackElo "2226"]
[Annotator "TA"]
[PlyCount "103"]
[EventDate "2024.09.02"]
[EventType "tourn"]
[EventCountry "POR"]
[SourceTitle "playchess.com"]
[Source "ChessBase"]
[SourceQuality "1"]
[TimeControl "5400+30"]

{[%evp 12,103,17,12,7,2,25,23,18,35,24,19,31,31,31,32,32,32,39,15,31,29,47,47,59,58,77,59,56,41,56,44,45,47,90,44,45,30,20,10,41,0,39,29,31,22,29,31,60,47,37,53,118,100,167,153,170,139,138,147,257,197,305,300,267,241,362,364,359,358,357,356,492,487,474,367,412,412,485,519,627,647,647,455,639,598,723,710,1962,0,2153,1857,29952,5648]} 1. e4 {[%emt 0:00:08]} e5 {[%emt 0:00:00]} 2. Nf3 {[%emt 0:00:18]} Nc6 {[%emt 0:00:00]} 3. Bb5 {[%emt 0:00:09]} a6 {[%emt 0:00:00]} 4. Ba4 {[%emt 0:00:09]} Nf6 {[%emt 0:00:00]} 5. d3 {[%emt 0:00:26]} b5 {[%emt 0:00:00]} 6. Bb3 {[%emt 0:00:06]} Bc5 {[%emt 0:00:33]} 7. Nc3 {[%emt 0:00:19]} h6 {[%emt 0:01:06]} 8. Nd5 {[%emt 0:00:46]} d6 {[%emt 0:02:01]} 9. c3 {[%emt 0:00:52]} Be6 {[%emt 0:00:30] White has an edge.} 10. Nxf6+ {[%emt 0:00:09]} Qxf6 {[%emt 0:00:05]} 11. O-O {[%emt 0:04:52]} O-O {[%emt 0:00:18]} 12. Bxe6 {[%emt 0:00:07]} fxe6 {[%emt 0:00:03]} 13. b4 {[%emt 0:00:44]} Bb6 {[%emt 0:00:03]} 14. a4 {[%emt 0:08:53]} Qg6 {[%emt 0:09:05]} 15. Qe2 {[%emt 0:01:57]} (15. Kh1 {simplifies} Rad8 16. h3 Qe8 17. Be3) 15... Rab8 {[%emt 0:05:27]} 16. Be3 {[%emt 0:05:05]} Bxe3 {[%emt 0:00:10]} 17. Qxe3 {[%emt 0:04:54]} Rf7 {[%emt 0:03:04]} 18. Nd2 {[%emt 0:11:57]} Qg4 {[%emt 0:08:28]} 19. Nb3 {[%emt 0:21:07]} Qf4 {[%emt 0:04:12]} 20. axb5 {[%emt 0:00:26]} (20. Qxf4 {simplifies} exf4 21. axb5 axb5 22. d4) 20... axb5 {[%emt 0:00:25]} 21. Ra6 {[%emt 0:03:24]} (21. Qh3 {simplifies} Qf6 22. Ra2 Ne7 23. Qg4) 21... Qxe3 {[%emt 0:00:20]} 22. fxe3 {[%emt 0:03:35]} Rxf1+ {[%emt 0:00:06]} 23. Kxf1 $14 {[%emt 0:06:25][%mdl 4096] Endgame. KRN-KRN} Rb6 {[%emt 0:00:41]} 24. Ra8+ {[%emt 0:01:25]} Rb8 {[%emt 0:00:27]} 25. Ra2 {[%emt 0:00:22]} Kf7 {[%emt 0:02:20]} 26. d4 {[%emt 0:11:05][%cal Bd3d4,Bd4d5][%mdl 32]} Ke7 {[%emt 0:05:20]} 27. d5 {[%emt 0:00:07]} Nd8 {[%emt 0:13:57]} 28. Ra7 {[%emt 0:00:11]} Rb7 {[%emt 0:01:45]} 29. Ra6 {[%emt 0:11:03]} Kd7 {[%emt 0:02:04]} 30. Na5 {[%emt 0:00:05]} Rb6 {[%emt 0:00:50]} 31. Ra8 {[%emt 0:00:47]} Ke7 {[%emt 0:01:03]} (31... c6 $14) 32. Ke2 {[%emt 0:02:12]} Kd7 {[%emt 0:00:19]} (32... h5 $16) 33. Kd3 $18 {[%emt 0:00:05]} Ke7 {[%emt 0:01:28]} 34. Kc2 {[%emt 0:00:25]} Kd7 {[%emt 0:00:09]} 35. h4 {[%emt 0:00:20][%cal Bh2h4,Bh4h5][%mdl 32] White is more active.} Ke7 {[%emt 0:00:24]} (35... g6 $16 {might work better.} 36. g4 exd5) 36. Kb3 {[%emt 0:00:08]} Kd7 {[%emt 0:04:35]} (36... g6 $142 37. c4 exd5) 37. h5 {[%emt 0:00:18]} Ke7 {[%emt 0:01:11]} 38. Kc2 {[%emt 0:00:06]} Kd7 {[%emt 0:00:03]} (38... exd5 {was necessary.} 39. exd5 e4) 39. Kd3 {[%emt 0:00:05]} Ke7 {[%emt 0:00:11]} 40. g4 {[%emt 0:00:41]} Kd7 {[%emt 0:05:08]} 41. c4 {[%emt 0:03:08]} c5 {[%emt 0:01:23]} 42. Ra7+ {[%emt 0:00:06]} Ke8 43. bxc5 {[%emt 0:00:00]} (43. Rxg7 Kf8 44. bxc5 dxc5 $18) 43... dxc5 {[%emt 0:30:23]} 44. cxb5 {[%emt 0:00:00]} ({Don't take} 44. Rxg7 Ra6 45. Nb3 (45. cxb5 Rxa5 46. g5 Ra3+ 47. Kc4 hxg5 $18) 45... Ra4) 44... Rxb5 {[%emt 0:00:27]} 45. Nc4 {[%emt 0:00:00] [#] Threatens to win with Nd6+.} Rb3+ {[%emt 0:00:51]} 46. Kc2 {[%emt 0:00:00]} Rb4 {[%emt 0:00:10]} 47. Nd6+ {[%emt 0:00:00]} ({Worse is} 47. Nxe5 Rxe4 48. Nc6 exd5 $11 (48... Rxe3 49. Ra8 $16)) 47... Kf8 {[%emt 0:00:05]} 48. Rd7 {[%emt 0:00:00]} (48. Ra8 Ke7 $18) 48... exd5 {[%emt 0:00:26]} 49. exd5 {[%emt 0:00:00][%cal Be4d5,Bd5d6][%mdl 32]} ({Weaker is} 49. Rxd8+ Ke7 $11) 49... Rxg4 {[%emt 0:00:20]} 50. Rxd8+ {[%emt 0:00:00]} Ke7 {[%emt 0:00:12]} 51. Nb7 {[%emt 0:00:00] [#] d6+ would now be deadly.} Rb4 {[%emt 0:02:12]} 52. d6+ {[%emt 0:00:00] Weighted Error Value: White=0.10 (very precise) /Black=0.45.  Mistake:       	---       	Black=5      Inaccurate:     	White=2     	Black=6      OK:         	White=18    	Black=12     Best:        	White=2     	---} 1-0

[Event "Portugal Championship 2024"]
[Site "Fontelo"]
[Date "2024.09.01"]
[Round "1.5"]
[White "Silva, Miguel Antonio Neto"]
[Black "Goncalves, Samuel Jesus P"]
[Result "1-0"]
[ECO "A41"]
[WhiteElo "2207"]
[BlackElo "2169"]
[Annotator "TA"]
[PlyCount "93"]
[EventDate "2024.09.02"]
[EventType "tourn"]
[EventCountry "POR"]
[SourceTitle "playchess.com"]
[Source "ChessBase"]
[SourceQuality "1"]
[TimeControl "5400+30"]

{[%evp 9,93,37,29,18,41,26,59,42,61,61,118,128,129,132,131,135,145,106,148,152,251,266,291,289,301,286,316,254,214,214,207,127,118,108,114,114,108,110,702,162,268,276,271,268,272,272,264,264,413,398,1108,874,6203,5727,5221,5213,29952,29948,29953,6231,29953,29960,29962,29962,29958,29967,29972,29973,29973,29976,29976,29977,29977,29978,29978,29979,29979,29980,29980,29981,29981,29982,29982,29983,29983,29984]} 1. d4 {[%emt 0:00:28]} d6 {[%emt 0:01:48]} 2. Nf3 {[%emt 0:00:06]} Nf6 {[%emt 0:03:00]} 3. c4 {[%emt 0:00:19]} g6 {[%emt 0:00:05]} 4. Nc3 {[%emt 0:00:07]} Bf5 {[%emt 0:00:04]} 5. Qb3 {[%emt 0:04:33]} b6 {[%emt 0:00:10]} 6. g3 {[%emt 0:00:09]} Bg7 {[%emt 0:03:27]} 7. Bg2 {[%emt 0:00:29]} c6 {[%emt 0:00:11]} 8. O-O {[%emt 0:01:41] White is slightly better.} O-O {[%emt 0:00:16]} 9. Re1 {[%emt 0:00:13]} Ne4 {[%emt 0:00:32]} (9... Nbd7 $14) 10. Nh4 $16 {[%emt 0:04:52]} Nxc3 {[%emt 0:00:31]} 11. Nxf5 {[%emt 0:00:57]} (11. bxc3 $6 Bd7 $11) (11. Qxc3 $6 Bd7 $14) 11... gxf5 {[%emt 0:09:53]} 12. bxc3 {[%emt 0:02:27][%cal Bb2c3,Bc3c4,Bc4d5][%mdl 32]} e6 {[%emt 0:00:29]} 13. Ba3 {[%emt 0:01:47]} Re8 {[%emt 0:00:50]} 14. Rad1 {[%emt 0:01:31] White is more active.} d5 {[%emt 0:00:36]} (14... Qc7 $16 {was necessary.} 15. Qa4 Rd8) 15. cxd5 $18 {[%emt 0:00:35]} cxd5 {[%emt 0:03:36]} 16. c4 {[%emt 0:07:45][%cal Rc4d5]} Nc6 {[%emt 0:00:23][%cal Oc6a5]} 17. cxd5 {[%emt 0:00:52]} Nxd4 {[%emt 0:03:06] [#]} 18. Rxd4 {[%emt 0:07:46][%mdl 512]} Bxd4 {[%emt 0:00:15]} 19. dxe6 {[%emt 0:00:27]} fxe6 {[%emt 0:00:29]} 20. Bxa8 {[%emt 0:06:11]} Qxa8 {[%emt 0:00:06]} 21. Rd1 {[%emt 0:00:10]} Bf6 {[%emt 0:05:48]} 22. Rd7 {[%emt 0:01:02]} Qe4 {[%emt 0:18:37]} 23. e3 {[%emt 0:05:08]} (23. Rxa7 $6 Qxe2 24. Rd7 (24. Qxb6 Qd1+ 25. Kg2 Qd5+ 26. Kg1 Bd4 $17) 24... Rc8 $11) 23... Rd8 $2 {[%emt 0:00:39][%mdl 8192] This costs Black the game.} (23... h5 $16) 24. Qd1 $2 {[%emt 0:02:08]} (24. Rxa7 Rd2 $11) (24. Rxd8+ Bxd8 25. Qb5) 24... Rxd7 {[%emt 0:04:19]} (24... Qa8 $142) 25. Qxd7 {[%emt 0:00:14][%mdl 4096] Endgame. Intending Qe8+ and mate. KQB-KQB} h6 {[%emt 0:01:54]} 26. Qe8+ {[%emt 0:02:19]} Kh7 {[%emt 0:01:36]} 27. Qf7+ {[%emt 0:00:07]} Bg7 {[%emt 0:00:05]} 28. Bf8 $1 {[%emt 0:00:08][%csl Gf8][%cal Rf7g7]} ({Stronger than} 28. Qxa7 Qb1+ 29. Kg2 Qxa2 $11) 28... Qb1+ {[%emt 0:09:01]} (28... Qg4 $142 29. Bxg7 (29. Qxa7 Kh8 $18) 29... Qxg7 30. Qxe6 Qg6 31. Qd7+ Kg8 32. Qxa7 Qc6) 29. Kg2 {[%emt 0:00:32][%csl Gf8][%cal Rf7g7]} Qe4+ $2 {[%emt 0:00:04]} (29... Qb2 30. Qxa7 Kg8 31. Bxg7 Qxg7 32. Qxg7+ (32. Qxb6 Qd7 $18) 32... Kxg7) 30. f3 {[%emt 0:00:23][%csl Gf8][%cal Rf7g7]} Qc2+ {[%emt 0:00:04]} 31. Kh3 {[%emt 0:00:23]} Qb2 {[%emt 0:00:04]} 32. Qxa7 {[%emt 0:00:28] Bxg7 would now be deadly.} Kg8 {[%emt 0:00:04]} 33. Bxg7 {[%emt 0:01:30]} Qxg7 {[%emt 0:00:06]} 34. Qxg7+ {[%emt 0:01:47]} Kxg7 {[%emt 0:00:05] KP-KP} 35. Kh4 {[%emt 0:00:07] White mates.} Kg6 {[%emt 0:00:59]} 36. f4 {[%emt 0:00:21]} b5 {[%emt 0:00:32]} 37. a3 {[%emt 0:00:22]} h5 {[%emt 0:01:29]} 38. h3 {[%emt 0:00:18]} Kh6 {[%emt 0:00:05]} 39. g4 {[%emt 0:00:07]} hxg4 {[%emt 0:00:04]} 40. hxg4 {[%emt 0:00:06]} fxg4 {[%emt 0:00:04]} 41. Kxg4 {[%emt 0:01:01] K3P-KPP} Kg6 {[%emt 0:00:06]} 42. e4 {[%emt 0:00:07][%cal Be3e4,Be4e5][%mdl 32]} Kf6 {[%emt 0:00:58]} 43. e5+ {[%emt 0:02:20]} Kg6 {[%emt 0:00:33] [#]} 44. f5+ $1 {[%emt 0:00:07][%mdl 512]} exf5+ {[%emt 0:00:10]} 45. Kf4 {[%emt 0:00:02]} Kf7 {[%emt 0:00:35]} 46. Kxf5 {[%emt 0:00:05]} Ke7 {[%emt 0:00:15]} 47. Ke4 {[%emt 0:00:27] Weighted Error Value: White=0.33/Black=0.45.  Loses game:     	---       	Black=1      Mistake:       	White=1     	Black=5      Inaccurate:     	White=1     	Black=3      OK:         	White=10    	Black=6      Best:        	White=6     	Black=2      Strong:       	White=1     	---} 1-0

[Event "Portugal Championship 2024"]
[Site "Fontelo"]
[Date "2024.09.01"]
[Round "1.5"]
[White "SILVA, Miguel Pires da"]
[Black "Goncalves, Samuel Jesus P"]
[Result "1-0"]
[ECO "A41"]
[WhiteElo "2192"]
[BlackElo "2169"]
[Annotator "TA"]
[PlyCount "93"]
[EventDate "2024.09.02"]
[EventType "tourn"]
[EventCountry "POR"]
[SourceTitle "playchess.com"]
[Source "ChessBase"]
[SourceQuality "1"]
[TimeControl "5400+30"]

{[%evp 9,93,31,41,25,28,29,54,57,56,51,132,150,136,141,139,144,126,97,166,153,275,258,296,298,300,300,317,260,265,258,264,114,116,119,105,106,105,107,730,175,292,285,292,292,291,291,287,280,397,392,1316,1165,6109,5720,1566,671,29954,29956,29959,29959,29965,29962,29961,29967,29967,29970,29975,29976,29976,29977,29977,29978,29978,29979,29979,29980,29980,29981,29980,29979,29979,29979,29982,29983,29983,29984]} 1. d4 {[%emt 0:00:28]} d6 {[%emt 0:01:48]} 2. Nf3 {[%emt 0:00:06]} Nf6 {[%emt 0:03:00]} 3. c4 {[%emt 0:00:19]} g6 {[%emt 0:00:05]} 4. Nc3 {[%emt 0:00:07]} Bf5 {[%emt 0:00:04]} 5. Qb3 {[%emt 0:04:33]} b6 {[%emt 0:00:10]} 6. g3 {[%emt 0:00:09]} Bg7 {[%emt 0:03:27]} 7. Bg2 {[%emt 0:00:29]} c6 {[%emt 0:00:11]} 8. O-O {[%emt 0:01:41] White is slightly better.} O-O {[%emt 0:00:16]} 9. Re1 {[%emt 0:00:13]} Ne4 {[%emt 0:00:32]} (9... Nbd7 $14) 10. Nh4 $16 {[%emt 0:04:52]} Nxc3 {[%emt 0:00:31]} 11. Nxf5 {[%emt 0:00:57]} (11. bxc3 $6 Bg4 $11) (11. Qxc3 $6 Bg4 $14) 11... gxf5 {[%emt 0:09:53]} 12. bxc3 {[%emt 0:02:27][%cal Bb2c3,Bc3c4,Bc4d5][%mdl 32]} e6 {[%emt 0:00:29]} 13. Ba3 {[%emt 0:01:47] White is more active.} Re8 {[%emt 0:00:50]} (13... Qc7 $16) 14. Rad1 $18 {[%emt 0:01:31]} d5 {[%emt 0:00:36]} (14... Qd7 $16 {was worth a try.} 15. e4 fxe4 16. Rxe4 (16. Bxe4 f5 $18) 16... d5) 15. cxd5 {[%emt 0:00:35]} cxd5 {[%emt 0:03:36]} 16. c4 {[%emt 0:07:45][%cal Rc4d5]} Nc6 {[%emt 0:00:23][%cal Oc6a5]} 17. cxd5 {[%emt 0:00:52]} Nxd4 {[%emt 0:03:06] [#]} 18. Rxd4 {[%emt 0:07:46][%mdl 512]} Bxd4 {[%emt 0:00:15]} 19. dxe6 {[%emt 0:00:27]} fxe6 {[%emt 0:00:29] [#]} 20. Bxa8 {[%emt 0:06:11]} (20. Rd1 $1 $18 {and the rest is easy.} Qf6 21. Bxa8 Rxa8 22. Qc4) 20... Qxa8 $16 {[%emt 0:00:06]} 21. Rd1 {[%emt 0:00:10]} Bf6 {[%emt 0:05:48]} 22. Rd7 {[%emt 0:01:02]} Qe4 {[%emt 0:18:37]} 23. e3 {[%emt 0:05:08]} ({Don't play} 23. Rxa7 $6 Qxe2 24. Qa4 (24. Qxb6 Qd1+ 25. Kg2 Qd5+ 26. Kg1 Bd4 $17) 24... b5 $11) 23... Rd8 $2 {[%emt 0:00:39][%mdl 8192] A mistake that costs the game.} (23... h5 $16) 24. Qd1 $2 {[%emt 0:02:08]} ({Stronger than} 24. Rxa7 Rd2 $11) (24. Rxd8+ Bxd8 25. Qb5) 24... Rxd7 {[%emt 0:04:19]} (24... Qa8 {was necessary.}) 25. Qxd7 $18 {[%emt 0:00:14][%mdl 4096] Endgame. Qe8+ would kill now. KQB-KQB} h6 {[%emt 0:01:54]} 26. Qe8+ {[%emt 0:02:19]} Kh7 {[%emt 0:01:36]} 27. Qf7+ {[%emt 0:00:07]} Bg7 {[%emt 0:00:05]} 28. Bf8 $1 {[%emt 0:00:08][%csl Gf8][%cal Rf7g7]} ({Inferior is} 28. Qxa7 Qb1+ 29. Kg2 Qxa2 $11) 28... Qb1+ {[%emt 0:09:01]} 29. Kg2 {[%emt 0:00:32][%csl Gf8][%cal Rf7g7]} Qe4+ $2 {[%emt 0:00:04]} (29... Qa1 30. Qxa7 b5 31. Qxg7+ Qxg7 32. Bxg7 Kxg7) 30. f3 {[%emt 0:00:23][%csl Gf8][%cal Rf7g7]} Qc2+ {[%emt 0:00:04]} 31. Kh3 {[%emt 0:00:23][%csl Gf8][%cal Rf7g7]} Qb2 {[%emt 0:00:04]} 32. Qxa7 {[%emt 0:00:28]} Kg8 {[%emt 0:00:04]} 33. Bxg7 {[%emt 0:01:30] White mates.} Qxg7 {[%emt 0:00:06]} 34. Qxg7+ {[%emt 0:01:47]} Kxg7 {[%emt 0:00:05] KP-KP} 35. Kh4 {[%emt 0:00:07]} Kg6 {[%emt 0:00:59]} 36. f4 {[%emt 0:00:21]} b5 {[%emt 0:00:32]} 37. a3 {[%emt 0:00:22]} h5 {[%emt 0:01:29]} 38. h3 {[%emt 0:00:18]} Kh6 {[%emt 0:00:05]} 39. g4 {[%emt 0:00:07]} hxg4 {[%emt 0:00:04]} 40. hxg4 {[%emt 0:00:06]} fxg4 {[%emt 0:00:04]} 41. Kxg4 {[%emt 0:01:01] K3P-KPP} Kg6 {[%emt 0:00:06]} 42. e4 {[%emt 0:00:07][%cal Be3e4,Be4e5][%mdl 32]} Kf6 {[%emt 0:00:58]} 43. e5+ {[%emt 0:02:20]} Kg6 {[%emt 0:00:33] [#]} 44. f5+ $1 {[%emt 0:00:07][%mdl 512]} exf5+ {[%emt 0:00:10]} 45. Kf4 {[%emt 0:00:02]} Kf7 {[%emt 0:00:35]} 46. Kxf5 {[%emt 0:00:05]} Ke7 {[%emt 0:00:15]} 47. Ke4 {[%emt 0:00:27] Weighted Error Value: White=0.30/Black=0.42.  Loses game:     	---       	Black=1      Mistake:       	White=2     	Black=5      Inaccurate:     	---       	Black=2      OK:         	White=8     	Black=8      Best:        	White=8     	Black=2      Strong:       	White=1     	---} 1-0